{"text_format":"1","workbook":"xlsx","n_sheets":4,"sheets":["Number","Shape","Shape_2","Measure"],"not_rendered":{"charts":0,"images":0,"macros":1,"external_links":0,"defined_names":8,"comments":0,"pivot_tables":0},"unopened":[],"bounds":{"document_bytes":16777216,"sheet_cells":100000,"rows_first":2000,"rows_last":500,"rows_between":2000,"halvings":0,"cell_chars":16384,"cell_head_chars":4096},"cells_cut":0,"cells_raw":0,"read":"whole","date_system":"1900"}

{"sheet":"Number","index":0,"n_rows":55,"n_cols":60,"rows_kept":55,"cut":false,"hidden":false,"merged":[[23,12,23,14],[23,31,23,33],[1,1,5,42],[9,12,9,14],[12,12,12,13],[13,12,13,13],[12,8,13,11],[9,8,9,11],[9,27,9,30],[9,31,9,33],[12,27,13,30],[12,31,12,32],[13,31,13,32],[42,12,42,13],[42,14,42,15],[42,30,42,31],[42,32,42,33],[30,7,31,8],[30,12,31,14],[30,18,31,20],[30,23,31,24],[35,7,36,8],[35,12,36,14],[35,18,36,20],[35,23,36,24],[46,12,46,13],[46,14,46,15],[46,31,46,32],[46,33,46,34],[54,14,54,15],[54,32,54,33]]}
[]
[null,"Level 2 Programme 1 Revision                                                                                                                                                                                                 Created by Mr.Lafferty@mathsrevision.com                                                                                                                                             "]
[]
[]
[]
[]
[]
[null,{"$f":"\"Q1.   Change these percentage to decimals then to fractions in their simplest form.\"","v":"Q1.   Change these percentage to decimals then to fractions in their simplest form."},null,null,null,null,null,null,null,null,null,null,null,null,null,null,null,null,null,null,null,null,null,null,null,null,null,null,null,null,null,null,null,null,null,null,null,null,null,null,null,null,null,null,null,null,null,null,null,null,null,"%"]
[]
[null,null,null,{"$f":"\"(a)      \"&AZ10&AZ8","v":"(a)      10%"},null,null,null,null,"Decimal =",null,null,null,null,null,null,null,null,null,null,null,null,null,{"$f":"\"(b)      \"&AZ11&AZ8","v":"(b)      75%"},null,null,null,null,"Decimal =",null,null,null,null,null,null,null,null,null,null,null,null,null,null,null,null,null,null,null,null,null,null,null,{"$f":"ROUND(RAND()*(10-1)+1,0)*5","v":10},{"$f":"AZ10/100","v":0.1},{"$f":"GCD(AZ10,100)","v":10},{"$f":"AZ10/BB10","v":1},{"$f":"100/BB10","v":10}]
[null,null,null,null,null,null,null,null,null,null,null,null,null,null,null,null,null,null,null,null,null,null,null,null,null,null,null,null,null,null,null,null,null,null,null,null,null,null,null,null,null,null,null,null,null,null,null,null,null,null,null,{"$f":"ROUND(RAND()*(19-11)+11,0)*5","v":75},{"$f":"AZ11/100","v":0.75},{"$f":"GCD(AZ11,100)","v":25},{"$f":"AZ11/BB11","v":3},{"$f":"100/BB11","v":4}]
[]
[null,null,null,null,null,null,null,null,"Fraction =",null,null,null,null,null,null,null,null,null,null,null,null,null,null,null,null,null,null,"Fraction ="]
[]
[]
[]
[]
[]
[]
[]
[null,null,null,null,null,null,null,null,null,null,null,null,null,null,null,null,null,null,null,null,null,null,null,null,null,null,null,null,null,null,null,null,null,null,null,null,null,null,null,null,null,null,null,null,null,null,null,null,null,null,null,"%"]
[null,{"$f":"\"Q2.   Find :-\"","v":"Q2.   Find :-"}]
[null,null,null,null,null,null,null,null,null,null,null,null,null,null,null,null,null,null,null,null,null,null,null,null,null,null,null,null,null,null,null,null,null,null,null,null,null,null,null,null,null,null,null,null,null,null,null,null,null,null,null,{"$f":"ROUND(RAND()*(3-1)+1,0)*25","v":50},{"$f":"ROUND(RAND()*(20-1)+1,0)*12","v":156},{"$f":"AZ23/100*BA23","v":78}]
[null,null,null,{"$f":"\"(a)      \"&AZ23&AZ21&\"  of  £\"&BA23&\".\"","v":"(a)      50%  of  £156."},null,null,null,null,null,null,null,"£",null,null,null,null,null,null,null,null,null,null,{"$f":"\"(b)      \"&AZ24&AZ21&\"  of  \"&BA24&\"g.\"","v":"(b)      90%  of  20g."},null,null,null,null,null,null,null,null,null,null,null,"g",null,null,null,null,null,null,null,null,null,null,null,null,null,null,null,null,{"$f":"ROUND(RAND()*(9-1)+1,0)*10","v":90},{"$f":"ROUND(RAND()*(20-1)+1,0)*10","v":20},{"$f":"AZ24/100*BA24","v":18}]
[]
[]
[]
[]
[null,{"$f":"\"Q3.   Find the missing numbers in the number machine.\"","v":"Q3.   Find the missing numbers in the number machine."},null,null,null,null,null,null,null,null,null,null,null,null,null,null,null,null,null,null,null,null,null,null,null,null,null,null,null,null,null,null,null,null,null,null,null,null,null,null,null,null,null,null,null,null,null,null,null,null,null,{"$f":"ROUND(RAND()*(9-3)+3,0)","v":7},"÷"]
[null,null,null,null,null,null,null,null,null,null,null,null,null,null,null,null,null,null,null,null,null,null,null,null,null,null,null,null,null,null,null,null,null,null,null,null,null,null,null,null,null,null,null,null,null,null,null,null,null,null,null,{"$f":"ROUND(RAND()*(9-3)+3,0)","v":7},{"$f":"AZ29*AZ30","v":49},{"$f":"CONCATENATE(BA29,\" \",AZ30)","v":"÷ 7"}]
[null,null,null,"(a)",null,null,null,{"$f":"BA30","v":49},null,null,null,null,{"$f":"BB30","v":"÷ 7"},null,null,null,null,null,{"$f":"BB31","v":"- 3"},null,null,null,null,null,null,null,null,null,null,null,null,null,null,null,null,null,null,null,null,null,null,null,null,null,null,null,null,null,null,null,null,{"$f":"ROUND(RAND()*(4-2)+2,0)","v":3},{"$f":"AZ29-AZ31","v":4},{"$f":"CONCATENATE(\"-\",\" \",AZ31)","v":"- 3"}]
[]
[]
[]
[null,null,null,null,null,null,null,null,null,null,null,null,null,null,null,null,null,null,null,null,null,null,null,null,null,null,null,null,null,null,null,null,null,null,null,null,null,null,null,null,null,null,null,null,null,null,null,null,null,null,null,{"$f":"ROUND(RAND()*(9-3)+3,0)","v":8},"÷"]
[null,null,null,"(b)",null,null,null,null,null,null,null,null,{"$f":"BB36","v":"x 4"},null,null,null,null,null,{"$f":"BB37","v":"+ 3"},null,null,null,null,{"$f":"BA37","v":35},null,null,null,null,null,null,null,null,null,null,null,null,null,null,null,null,null,null,null,null,null,null,null,null,null,null,null,{"$f":"ROUND(RAND()*(9-3)+3,0)","v":4},{"$f":"AZ35*AZ36","v":32},{"$f":"CONCATENATE(\"x\",\" \",AZ36)","v":"x 4"}]
[null,null,null,null,null,null,null,null,null,null,null,null,null,null,null,null,null,null,null,null,null,null,null,null,null,null,null,null,null,null,null,null,null,null,null,null,null,null,null,null,null,null,null,null,null,null,null,null,null,null,null,{"$f":"ROUND(RAND()*(4-2)+2,0)","v":3},{"$f":"BA36+AZ37","v":35},{"$f":"CONCATENATE(\"+\",\" \",AZ37)","v":"+ 3"}]
[]
[]
[null,null,null,null,null,null,null,null,null,null,null,null,null,null,null,null,null,null,null,null,null,null,null,null,null,null,null,null,null,null,null,null,null,null,null,null,null,null,null,null,null,null,null,null,null,null,null,null,null,null,null,{"$f":"ROUND(RAND()*(100-97)+97,0)","v":99},{"$f":"ROUND(RAND()*(30-5)+5,0)","v":7}]
[null,{"$f":"\"Q4.   Solve the equations below :-\"","v":"Q4.   Solve the equations below :-"},null,null,null,null,null,null,null,null,null,null,null,null,null,null,null,null,null,null,null,null,null,null,null,null,null,null,null,null,null,null,null,null,null,null,null,null,null,null,null,null,null,null,null,null,null,null,null,null,null,{"$f":"CHAR(AZ40)","v":"c"},{"$f":"ROUND(RAND()*(20-7)+7,0)","v":18},{"$f":"BA40+BA41","v":25}]
[]
[null,null,null,{"$f":"\"(a)      \"&AZ41&\" + \"&BA41&\" = \"&BB41","v":"(a)      c + 18 = 25"},null,null,null,null,null,null,null,null,{"$f":"AZ41&\" = \"","v":"c = "},null,null,null,null,null,null,null,null,null,{"$f":"\"(b)      \"&BA43&AZ44&\" = \"&BB44","v":"(b)      5g = 50"},null,null,null,null,null,null,null,{"$f":"AZ44&\" = \"","v":"g = "},null,null,null,null,null,null,null,null,null,null,null,null,null,null,null,null,null,null,null,null,{"$f":"ROUND(RAND()*(103-101)+101,0)","v":103},{"$f":"ROUND(RAND()*(10-2)+2,0)","v":5}]
[null,null,null,null,null,null,null,null,null,null,null,null,null,null,null,null,null,null,null,null,null,null,null,null,null,null,null,null,null,null,null,null,null,null,null,null,null,null,null,null,null,null,null,null,null,null,null,null,null,null,null,{"$f":"CHAR(AZ43)","v":"g"},{"$f":"ROUND(RAND()*(20-7)+7,0)","v":10},{"$f":"BA43*BA44","v":50}]
[]
[null,null,null,null,null,null,null,null,null,null,null,null,null,null,null,null,null,null,null,null,null,null,null,null,null,null,null,null,null,null,null,null,null,null,null,null,null,null,null,null,null,null,null,null,null,null,null,null,null,null,null,{"$f":"ROUND(RAND()*(119-117)+117,0)","v":118},{"$f":"ROUND(RAND()*(30-10)+10,0)","v":14},null,null,null,null,{"$f":"ROUND(RAND()*(122-120)+120,0)","v":121},{"$f":"ROUND(RAND()*(30-10)+10,0)","v":12}]
[null,null,null,{"$f":"\"(c)      \"&AZ47&\" - \"&BA47&\" = \"&BB47","v":"(c)      v - 8 = 6"},null,null,null,null,null,null,null,null,{"$f":"AZ47&\" = \"","v":"v = "},null,null,null,null,null,null,null,null,null,{"$f":"\"(d)      \"&BF47&\" - \"&BG47&\" > \"&BH47","v":"(d)      y - 4 > 8"},null,null,null,null,null,null,null,null,{"$f":"BF47&\" > \"","v":"y > "},null,null,null,null,null,null,null,null,null,null,null,null,null,null,null,null,null,null,null,{"$f":"CHAR(AZ46)","v":"v"},{"$f":"ROUND(RAND()*(9-3)+3,0)","v":8},{"$f":"BA46-BA47","v":6},null,null,null,{"$f":"CHAR(BF46)","v":"y"},{"$f":"ROUND(RAND()*(9-3)+3,0)","v":4},{"$f":"BG46-BG47","v":8}]
[]
[]
[]
[]
[null,null,null,null,null,null,null,null,null,null,null,null,null,null,null,null,null,null,null,null,null,null,null,null,null,null,null,null,null,null,null,null,null,null,null,null,null,null,null,null,null,null,null,null,null,null,null,null,null,null,null,{"$f":"ROUND(RAND()*((-2)-(-20))+(-20),0)","v":-9},{"$f":"ROUND(RAND()*((-2)-(-20))+(-20),0)","v":-6},{"$f":"AZ52+BA52","v":-15}]
[null,{"$f":"\"Q5.   Calculate the following :-\"","v":"Q5.   Calculate the following :-"},null,null,null,null,null,null,null,null,null,null,null,null,null,null,null,null,null,null,null,null,null,null,null,null,null,null,null,null,null,null,null,null,null,null,null,null,null,null,null,null,null,null,null,null,null,null,null,null,null,{"$f":"ROUND(RAND()*(10-4)+4,0)","v":5},{"$f":"ROUND(RAND()*(30-10)+10,0)","v":15},{"$f":"AZ53-BA53","v":-10}]
[]
[null,null,null,{"$f":"\"(a)     ( \"&AZ52&\") + (\"&BA52&\") = \"","v":"(a)     ( -9) + (-6) = "},null,null,null,null,null,null,null,null,null,null,null,null,null,null,null,null,null,null,{"$f":"\"(b)      \"&AZ53&\" - \"&BA53&\" = \"","v":"(b)      5 - 15 = "}]

{"sheet":"Shape","index":1,"n_rows":54,"n_cols":52,"rows_kept":54,"cut":false,"hidden":false,"merged":[[45,36,45,38],[48,18,48,19],[53,22,53,23],[48,28,48,29],[45,32,45,35],[39,16,39,17],[40,24,40,25],[31,31,31,32],[31,33,31,35],[15,2,15,18],[34,33,34,35],[34,29,34,32],[1,1,5,42],[23,24,23,25],[25,18,25,21],[18,24,18,27],[16,35,16,38],[11,36,11,39],[24,39,24,40]]}
[]
[null,"Level 2 Programme 1 Revision                                                                                                                     Created by Mr.Lafferty@mathsrevision.com                                                                                                                                             "]
[]
[]
[]
[]
[]
[null,"Q1.",null,"Fill in the missing words ( be careful with your spelling )"]
[]
[null,null,null,null,null,null,null,null,null,null,null,null,null,null,null,null,null,null,null,null,null,null,null,null,null,null,null,null,null,null,null,null,null,null,null,null,null,null,null,null,null,null,null,null,null,null,null,null,null,null,null,"length"]
[null,null,null,null,null,null,null,null,null,null,null,null,null,null,null,null,null,null,null,null,null,null,null,null,null,null,null,null,null,null,null,null,null,null,null,null,null,null,null,null,null,null,null,null,null,null,null,null,null,null,null,"breadth"]
[null,null,null,null,null,null,null,null,null,null,null,null,null,null,null,null,null,null,null,null,null,null,null,null,null,null,null,null,null,null,null,null,null,null,null,null,null,null,null,null,null,null,null,null,null,null,null,null,null,null,null,"height"]
[]
[]
[]
[null,null,"(b) Fill in the missing letters in the formula."]
[]
[null,null,null,null,null,"V","=",null,"x",null,"x",null,null,null,null,null,null,null,null,null,null,null,null,null,null,null,null,null,null,null,null,null,null,null,null,null,null,null,null,null,null,null,null,null,null,null,null,null,null,null,null,"l"]
[null,null,null,null,null,null,null,null,null,null,null,null,null,null,null,null,null,null,null,null,null,null,null,null,null,null,null,null,null,null,null,null,null,null,null,null,null,null,null,null,null,null,null,null,null,null,null,null,null,null,null,"b"]
[null,null,null,null,null,null,null,null,null,null,null,null,null,null,null,null,null,null,null,null,null,null,null,null,null,null,null,null,null,null,null,null,null,null,null,null,null,null,null,null,null,null,null,null,null,null,null,null,null,null,null,"h"]
[]
[]
[null,"Q2.",null,"Find the volume of the cuboid opposite:"]
[null,null,null,null,null,null,null,null,null,null,null,null,null,null,null,null,null,null,null,null,null,null,null,null,{"$f":"ROUND(RAND()*(4-2)+2,0)","v":3},null,"cm"]
[null,null,null,null,null,null,null,null,null,null,null,null,null,null,null,null,null,null,null,null,null,null,null,null,null,null,null,null,null,null,null,null,null,null,null,null,null,null,null,{"$f":"ROUND(RAND()*(6-3)+3,0)","v":5},null,"cm"]
[null,null,null,null,null,null,null,null,null,null,null,null,null,null,null,null,null,null,null,null,null,null,"cm3",null,null,null,null,null,null,null,null,null,{"$f":"Y24+ROUND(RAND()*(8-5)+5,0)","v":10},"cm",null,null,null,null,null,null,null,null,null,null,null,null,null,null,null,null,null,{"$f":"Y24*AG26*AN25","v":150}]
[]
[]
[]
[null,{"$f":"\"Q3.   Find the area and perimeter of the rectangle.\"","v":"Q3.   Find the area and perimeter of the rectangle."}]
[]
[null,null,null,null,null,null,null,null,null,null,null,null,null,null,null,null,null,null,null,null,null,null,null,null,null,null,null,null,null,null,null,"Area =",null,null,null,null,"m2",null,null,null,null,null,null,null,null,null,null,null,null,null,null,{"$f":"Q40*Y41","v":154}]
[]
[]
[null,null,null,null,null,null,null,null,null,null,null,null,null,null,null,null,null,null,null,null,null,null,null,null,null,null,null,null,null,"Perimeter =",null,null,null,null,null,null,"m",null,null,null,null,null,null,null,null,null,null,null,null,null,null,{"$f":"2*(Q40+Y41)","v":58}]
[]
[]
[]
[]
[null,null,null,null,null,null,null,null,null,null,null,null,null,null,null,null,{"$f":"ROUND(RAND()*(30-10)+10,0)","v":22},null,"m"]
[null,null,null,null,null,null,null,null,null,null,null,null,null,null,null,null,null,null,null,null,null,null,null,null,{"$f":"ROUND(Q40/3,0)","v":7},null,"m"]
[]
[]
[]
[null,{"$f":"\"Q4.   Find the area and perimeter of the triangle.\"","v":"Q4.   Find the area and perimeter of the triangle."}]
[null,null,null,null,null,null,null,null,null,null,null,null,null,null,null,null,null,null,null,null,null,null,null,null,null,null,null,null,null,null,null,null,"Perimeter = ",null,null,null,null,null,null,"mm",null,null,null,null,null,null,null,null,null,null,null,{"$f":"W54+S49+AC49","v":130}]
[]
[]
[null,null,null,null,null,null,null,null,null,null,null,null,null,null,null,null,null,null,{"$f":"W54-ROUND(RAND()*(3-1)+1,0)","v":44},null,"mm",null,null,null,null,null,null,null,{"$f":"S49-ROUND(RAND()*(7-2)+2,0)","v":39},null,"mm"]
[]
[]
[]
[]
[null,null,null,null,null,null,null,null,null,null,null,null,null,null,null,null,null,null,null,null,null,null,{"$f":"ROUND(RAND()*(50-20)+20,0)","v":47},null,"mm"]

{"sheet":"Shape_2","index":2,"n_rows":71,"n_cols":66,"rows_kept":71,"cut":false,"hidden":false,"merged":[[57,17,58,17],[57,13,58,13],[1,1,5,42],[39,16,39,17],[15,8,16,9],[12,32,13,33],[12,28,13,29],[12,13,12,14],[10,37,10,38],[25,8,26,9],[26,6,27,7],[26,10,27,11],[27,8,28,9],[25,20,25,21],[25,27,25,28],[25,34,25,35],[39,25,39,26],[35,30,35,31],[35,32,35,33],[12,15,12,16],[10,35,10,36],[47,8,47,10],[45,6,45,8],[45,11,45,13],[45,14,45,16],[34,23,34,24],[64,28,64,33],[67,28,67,30],[55,24,55,26],[55,27,55,29],[44,25,44,26],[46,25,46,26],[48,25,48,26],[50,25,50,26],[44,27,44,29],[46,27,46,29],[48,27,48,29],[50,27,50,29]]}
[]
[null,"Level 2 Programme 1 Revision                                                                                                                     Created by Mr.Lafferty@mathsrevision.com                                                                                                                                             "]
[]
[]
[]
[]
[null,null,null,null,null,null,null,null,null,null,null,null,null,null,null,null,null,null,null,null,null,null,null,null,null,null,null,null,null,null,null,null,null,null,null,null,null,null,null,null,null,null,null,null,null,null,null,null,null,null,null,{"$f":"ROUND(RAND()*(70-50)+50,0)","v":64},{"$f":"AZ7&AZ10","v":"64°"}]
[null,{"$f":"\"Q1.  Find the missing angles.\"","v":"Q1.  Find the missing angles."},null,null,null,null,null,null,null,null,null,null,null,null,null,null,null,null,null,null,null,null,null,null,null,null,null,null,null,null,null,null,null,null,null,null,null,null,null,null,null,null,null,null,null,null,null,null,null,null,null,{"$f":"ROUND(RAND()*(160-140)+140,0)","v":141},{"$f":"AZ8&AZ10","v":"141°"}]
[]
[null,null,"(a)",null,null,null,null,null,null,null,null,null,null,null,null,null,null,null,null,null,"(b)",null,null,null,null,null,null,null,null,null,null,null,null,null,null,null,null,null,null,null,null,null,null,null,null,null,null,null,null,null,null,"°"]
[null,null,null,null,null,null,null,null,null,null,null,null,null,null,null,null,null,null,null,null,null,null,null,null,null,null,null,null,null,null,null,null,null,null,null,"yo =",null,null,null,{"$f":"AZ10","v":"°"},null,null,null,null,null,null,null,null,null,null,null,{"$f":"90-AZ7","v":26}]
[null,null,null,null,null,null,null,null,null,null,null,null,null,null,null,null,null,null,null,null,null,null,null,null,null,null,null,null,null,null,null,null,null,null,null,null,null,null,null,null,null,null,null,null,null,null,null,null,null,null,null,{"$f":"180-AZ8","v":39}]
[null,null,null,null,null,null,null,null,null,null,null,null,null,"xo =",null,null,null,{"$f":"AZ10","v":"°"},null,null,null,null,null,null,null,null,null,null,"yo",null,null,null,{"$f":"BA8","v":"141°"}]
[]
[null,null,null,null,null,null,null,"xo"]
[null,null,null,null,null,null,null,null,{"$f":"BA7","v":"64°"}]
[]
[]
[]
[]
[null,null,null,null,null,null,null,null,null,null,null,null,null,null,null,null,null,null,null,null,null,null,null,null,null,null,null,null,null,null,null,null,null,null,null,null,null,null,null,null,null,null,null,null,null,null,null,null,null,null,null,{"$f":"ROUND(RAND()*(160-130)+130,0)","v":154},{"$f":"AZ21&AZ10","v":"154°"}]
[null,{"$f":"\"Q2.   Find the missing angles.\"","v":"Q2.   Find the missing angles."},null,null,null,null,null,null,null,null,null,null,null,null,null,null,null,null,null,null,null,null,null,null,null,null,null,null,null,null,null,null,null,null,null,null,null,null,null,null,null,null,null,null,null,null,null,null,null,null,null,{"$f":"ROUND(RAND()*(102-97)+97,0)","v":100}]
[null,null,null,null,null,null,null,null,null,null,null,null,null,null,null,null,null,null,null,null,null,null,null,null,null,null,null,null,null,null,null,null,null,null,null,null,null,null,null,null,null,null,null,null,null,null,null,null,null,null,null,{"$f":"CHAR(AZ22)","v":"d"},{"$f":"AZ23&AZ10","v":"d°"}]
[null,null,null,null,null,null,null,null,null,null,null,null,null,null,null,null,null,null,null,null,null,null,null,null,null,null,null,null,null,null,null,null,null,null,null,null,null,null,null,null,null,null,null,null,null,null,null,null,null,null,null,{"$f":"CHAR(AZ22+1)","v":"e"},{"$f":"AZ24&AZ10","v":"e°"}]
[null,null,null,null,null,null,null,null,null,null,null,null,null,null,null,null,null,null,null,null,null,null,null,null,null,null,null,null,null,null,null,null,null,null,null,null,null,null,null,null,null,null,null,null,null,null,null,null,null,null,null,{"$f":"CHAR(AZ22+2)","v":"f"},{"$f":"AZ25&AZ10","v":"f°"}]
[null,null,null,null,null,null,null,null,{"$f":"BA21","v":"154°"},null,null,null,null,null,null,null,null,null,{"$f":"BA23&\" =\"","v":"d° ="},null,null,null,{"$f":"AZ10","v":"°"},null,null,{"$f":"BA24&\" =\"","v":"e° ="},null,null,null,{"$f":"AZ10","v":"°"},null,null,{"$f":"BA25&\" =\"","v":"f° ="},null,null,null,{"$f":"AZ10","v":"°"},null,null,null,null,null,null,null,null,null,null,null,null,null,null,{"$f":"180-AZ21","v":26}]
[null,null,null,null,null,null,{"$f":"BA23","v":"d°"},null,null,null,{"$f":"BA25","v":"f°"},null,null,null,null,null,null,null,null,null,null,null,null,null,null,null,null,null,null,null,null,null,null,null,null,null,null,null,null,null,null,null,null,null,null,null,null,null,null,null,null,{"$f":"AZ21","v":154}]
[null,null,null,null,null,null,null,null,{"$f":"BA24","v":"e°"},null,null,null,null,null,null,null,null,null,null,null,null,null,null,null,null,null,null,null,null,null,null,null,null,null,null,null,null,null,null,null,null,null,null,null,null,null,null,null,null,null,null,{"$f":"AZ26","v":26}]
[]
[]
[]
[]
[null,{"$f":"\"Q3.   Find the missing angle in the triangle.\"","v":"Q3.   Find the missing angle in the triangle."},null,null,null,null,null,null,null,null,null,null,null,null,null,null,null,null,null,null,null,null,null,null,null,null,null,null,null,null,null,null,null,null,null,null,null,null,null,null,null,null,null,null,null,null,null,null,null,null,{"$f":"ROUND(RAND()*(3-1)+1,0)","v":2},{"$f":"ROUND(RAND()*(50-30)+30,0)","v":33},"a"]
[null,null,null,null,null,null,null,null,null,null,null,null,null,null,null,null,null,null,null,null,null,null,null,null,null,null,null,null,null,null,null,null,null,null,null,null,null,null,null,null,null,null,null,null,null,null,null,null,null,null,null,{"$f":"AZ33+30","v":63},"b"]
[null,null,null,null,null,null,null,null,null,null,null,null,null,null,null,null,null,null,null,null,null,null,null,{"$f":"BA38","v":"84°"},null,null,null,null,null,null,null,null,null,null,null,null,null,null,null,null,null,null,null,null,null,null,null,null,null,null,null,{"$f":"180-AZ33-AZ34","v":84},"c"]
[null,null,null,null,null,null,null,null,null,null,null,null,null,null,null,null,null,null,null,null,null,null,null,null,null,null,null,null,null,null,{"$f":"AZ39&\" =\"","v":"b° ="},null,null,null,{"$f":"AZ10","v":"°"},null,null,null,null,null,null,null,null,null,null,null,null,null,null,null,null,{"$f":"IF(AY33=1,BA33,AZ33)","v":33},{"$f":"AZ36&AZ10","v":"33°"}]
[null,null,null,null,null,null,null,null,null,null,null,null,null,null,null,null,null,null,null,null,null,null,null,null,null,null,null,null,null,null,null,null,null,null,null,null,null,null,null,null,null,null,null,null,null,null,null,null,null,null,null,{"$f":"IF(AY33=2,BA34,AZ34)","v":"b"},{"$f":"AZ37&AZ10","v":"b°"}]
[null,null,null,null,null,null,null,null,null,null,null,null,null,null,null,null,null,null,null,null,null,null,null,null,null,null,null,null,null,null,null,null,null,null,null,null,null,null,null,null,null,null,null,null,null,null,null,null,null,null,null,{"$f":"IF(AY33=3,BA35,AZ35)","v":84},{"$f":"AZ38&AZ10","v":"84°"}]
[null,null,null,null,null,null,null,null,null,null,null,null,null,null,null,null,null,null,null,null,null,null,null,null,null,null,null,null,null,null,null,null,null,null,null,null,null,null,null,null,null,null,null,null,null,null,null,null,null,null,null,{"$f":"IF(AY33=1,BA36,IF(AY33=2,BA37,BA38))","v":"b°"}]
[null,null,null,null,null,null,null,null,null,null,null,null,null,null,null,null,{"$f":"BA36","v":"33°"},null,null,null,null,null,null,null,null,{"$f":"BA37","v":"b°"},null,null,null,null,null,null,null,null,null,null,null,null,null,null,null,null,null,null,null,null,null,null,null,null,null,{"$f":"IF(AY33=1,AZ33,IF(AY33=2,AZ34,AZ35))","v":63}]
[]
[]
[null,null,null,null,null,null,null,null,null,null,null,null,null,null,null,null,null,null,null,null,null,null,null,null,null,null,null,null,null,null,null,null,null,null,null,null,null,null,null,null,null,null,null,null,null,null,null,null,null,null,{"$f":"ROUND(RAND()*(4-1)+1,0)","v":1},{"$f":"ROUND(RAND()*(80-65)+65,0)*2","v":132},"w"]
[null,{"$f":"\"Q4.   Find all the missing angles.\"","v":"Q4.   Find all the missing angles."},null,null,null,null,null,null,null,null,null,null,null,null,null,null,null,null,null,null,null,null,null,null,null,null,null,null,null,null,null,null,null,null,null,null,null,null,null,null,null,null,null,null,null,null,null,null,null,null,null,{"$f":"180-AZ43","v":48},"x"]
[null,null,null,null,null,null,null,null,null,null,null,null,null,null,null,null,null,null,null,null,null,null,null,null,null,{"$f":"BA43&AZ10&\" =\"","v":"w° ="},null,null,null,null,{"$f":"AZ10","v":"°"},null,null,null,null,null,null,null,null,null,null,null,null,null,null,null,null,null,null,null,null,{"$f":"AZ44","v":48},"y"]
[null,null,null,null,null,null,{"$f":"BA49","v":"y°"},null,null,null,null,{"$f":"BA48","v":"x°"},null,null,{"$f":"BA47","v":"w = 132°"},null,null,null,null,null,null,null,null,null,null,null,null,null,null,null,null,null,null,null,null,null,null,null,null,null,null,null,null,null,null,null,null,null,null,null,null,{"$f":"180-AZ44-AZ45","v":84},"z"]
[null,null,null,null,null,null,null,null,null,null,null,null,null,null,null,null,null,null,null,null,null,null,null,null,null,{"$f":"BA44&AZ10&\" =\"","v":"x° ="},null,null,null,null,{"$f":"AE45","v":"°"},null,null,null,null,null,null,null,null,null,null,null,null,null,null,null,null,null,null,null,null,{"$f":"IF(AY43=1,AZ43,BA43)","v":132},{"$f":"IF(AY43=1,\"w = \"&AZ47&AZ10,AZ47&AZ10)","v":"w = 132°"}]
[null,null,null,null,null,null,null,null,{"$f":"BA50","v":"z°"},null,null,null,null,null,null,null,null,null,null,null,null,null,null,null,null,null,null,null,null,null,null,null,null,null,null,null,null,null,null,null,null,null,null,null,null,null,null,null,null,null,null,{"$f":"IF(AY43=2,AZ44,BA44)","v":"x"},{"$f":"IF(AY43=2,\"x = \"&AZ48&AZ10,AZ48&AZ10)","v":"x°"}]
[null,null,null,null,null,null,null,null,null,null,null,null,null,null,null,null,null,null,null,null,null,null,null,null,null,{"$f":"BA45&AZ10&\" =\"","v":"y° ="},null,null,null,null,{"$f":"AE47","v":"°"},null,null,null,null,null,null,null,null,null,null,null,null,null,null,null,null,null,null,null,null,{"$f":"IF(AY43=3,AZ45,BA45)","v":"y"},{"$f":"IF(AY43=3,\"y = \"&AZ49&AZ10,AZ49&AZ10)","v":"y°"}]
[null,null,null,null,null,null,null,null,null,null,null,null,null,null,null,null,null,null,null,null,null,null,null,null,null,null,null,null,null,null,null,null,null,null,null,null,null,null,null,null,null,null,null,null,null,null,null,null,null,null,null,{"$f":"IF(AY43=4,AZ46,BA46)","v":"z"},{"$f":"IF(AY43=4,\"z = \"&AZ50&AZ10,AZ50&AZ10)","v":"z°"}]
[null,null,null,null,null,null,null,null,null,null,null,null,null,null,null,null,null,null,null,null,null,null,null,null,null,{"$f":"BA46&AZ10&\" =\"","v":"z° ="},null,null,null,null,{"$f":"AE49","v":"°"}]
[]
[]
[null,"Q5.   For the angle below write down the TYPE and NAME of the angle."]
[]
[null,null,null,null,null,null,null,null,null,null,{"$f":"UPPER(CHAR(ROUND(RAND()*(102-97)+97,0)))","v":"C"},null,null,null,null,null,null,null,null,null,{"$f":"UPPER(CHAR(ROUND(RAND()*(106-103)+103,0)))","v":"H"},null,null,null,"Type ="]
[null,null,null,null,null,null,null,null,null,null,null,null,null,null,null,null,null,null,null,null,null,null,null,null,null,null,null,null,null,null,null,null,null,null,null,null,null,null,null,null,null,null,null,null,null,null,null,null,null,null,null,{"$f":"ROUND(RAND()*(3-1)+1,0)","v":2},1,"x°","acute",{"$f":"K56","v":"C"},{"$f":"P59","v":"R"},{"$f":"U56","v":"H"}]
[null,null,null,null,null,null,null,null,null,null,null,null,null,{"$f":"IF(AZ57=3,BB59,\"\")","v":""},null,{"$f":"IF(AZ57=1,BB57,\"\")","v":""},null,{"$f":"IF(AZ57=2,BB58,\"\")","v":"y°"},null,null,null,null,null,null,"Name   ",null,"Ð",null,null,null,null,"(order left to right or top to bottom)",null,null,null,null,null,null,null,null,null,null,null,null,null,null,null,null,null,null,null,null,2,"y°","obtuse",{"$f":"U56","v":"H"},{"$f":"P59","v":"R"},{"$f":"U61","v":"L"}]
[null,null,null,null,null,null,null,null,null,null,null,null,null,null,null,{"$f":"UPPER(CHAR(ROUND(RAND()*(115-113)+113,0)))","v":"R"},null,null,null,null,null,null,null,null,null,null,null,null,null,null,null,null,null,null,null,null,null,null,null,null,null,null,null,null,null,null,null,null,null,null,null,null,3,"z°","acute",{"$f":"K56","v":"C"},{"$f":"P59","v":"R"},{"$f":"K61","v":"O"}]
[null,null,null,null,null,null,null,null,null,null,null,null,null,null,null,null,null,null,null,null,null,null,null,null,null,null,null,null,null,null,null,null,null,null,null,null,null,null,null,null,null,null,null,null,null,null,null,null,null,null,null,null,null,{"$f":"LOOKUP($AZ$57,BA57:BA59,BB57:BB59)","v":"y°"},{"$f":"LOOKUP($AZ$57,BA57:BA59,BC57:BC59)","v":"obtuse"},{"$f":"LOOKUP($AZ$57,BA57:BA59,BD57:BD59)","v":"H"},{"$f":"LOOKUP($AZ$57,BA57:BA59,BE57:BE59)","v":"R"},{"$f":"LOOKUP($AZ$57,BA57:BA59,BF57:BF59)","v":"L"}]
[null,null,null,null,null,null,null,null,null,null,{"$f":"UPPER(CHAR(ROUND(RAND()*(112-110)+110,0)))","v":"O"},null,null,null,null,null,null,null,null,null,{"$f":"UPPER(CHAR(ROUND(RAND()*(109-107)+107,0)))","v":"L"}]
[]
[]
[null,null,null,null,null,null,null,null,null,null,null,null,null,null,null,null,null,null,null,null,null,null,null,null,null,null,null,null,null,null,null,null,null,null,null,null,null,null,null,null,null,null,null,null,null,null,null,null,null,null,null,null,{"$f":"ROUND(RAND()*(7-1)+1,0)","v":6},1,45,"North East",null,null,null,null,null,null,{"$f":"ROUND(RAND()*(7-1)+1,0)","v":2},1,45,"North East"]
[null,{"$f":"\"Q6.     (a)   If Logan is walking on a bearing of \"&BC71&BA71&\". What direction is he travelling in.\"","v":"Q6.     (a)   If Logan is walking on a bearing of 270°. What direction is he travelling in."},null,null,null,null,null,null,null,null,null,null,null,null,null,null,null,null,null,null,null,null,null,null,null,null,null,null,null,null,null,null,null,null,null,null,null,null,null,null,null,null,null,null,null,null,null,null,null,null,null,null,null,2,90,"East",null,null,null,null,null,null,null,2,90,"East"]
[null,null,null,null,null,null,null,null,null,null,null,null,null,null,null,null,null,null,null,null,null,null,null,null,null,null,null,null,null,null,null,null,null,null,null,null,null,null,null,null,null,null,null,null,null,null,null,null,null,null,null,null,null,3,135,"South East",null,null,null,null,null,null,null,3,135,"South East"]
[null,null,null,null,null,null,null,null,null,null,null,null,null,null,null,null,null,null,null,null,null,null,null,null,null,null,null,null,null,null,null,null,null,null,null,null,null,null,null,null,null,null,null,null,null,null,null,null,null,null,null,null,null,4,180,"South",null,null,null,null,null,null,null,4,180,"South"]
[null,null,null,{"$f":"\"(b)   If Kieran is travelling \"&BN71&\" . What bearing is he travelling on.\"","v":"(b)   If Kieran is travelling East . What bearing is he travelling on."},null,null,null,null,null,null,null,null,null,null,null,null,null,null,null,null,null,null,null,null,null,null,null,null,null,null,null,{"$f":"BA71","v":"°"},null,null,null,null,null,null,null,null,null,null,null,null,null,null,null,null,null,null,null,null,null,5,225,"South West",null,null,null,null,null,null,null,5,225,"South West"]
[null,null,null,null,null,null,null,null,null,null,null,null,null,null,null,null,null,null,null,null,null,null,null,null,null,null,null,null,null,null,null,null,null,null,null,null,null,null,null,null,null,null,null,null,null,null,null,null,null,null,null,null,null,6,270,"West",null,null,null,null,null,null,null,6,270,"West"]
[null,null,null,null,null,null,null,null,null,null,null,null,null,null,null,null,null,null,null,null,null,null,null,null,null,null,null,null,null,null,null,null,null,null,null,null,null,null,null,null,null,null,null,null,null,null,null,null,null,null,null,null,null,7,315,"North West",null,null,null,null,null,null,null,7,315,"North West"]
[null,null,null,null,null,null,null,null,null,null,null,null,null,null,null,null,null,null,null,null,null,null,null,null,null,null,null,null,null,null,null,null,null,null,null,null,null,null,null,null,null,null,null,null,null,null,null,null,null,null,null,null,"°",null,{"$f":"LOOKUP($BA$64,BB64:BB70,BC64:BC70)","v":270},{"$f":"LOOKUP($BA$64,BB64:BB70,BD64:BD70)","v":"West"},null,null,null,null,null,null,"°",null,{"$f":"LOOKUP($BK$64,BL64:BL70,BM64:BM70)","v":90},{"$f":"LOOKUP($BK$64,BL64:BL70,BN64:BN70)","v":"East"}]

{"sheet":"Measure","index":3,"n_rows":31,"n_cols":50,"rows_kept":31,"cut":false,"hidden":false,"merged":[[26,14,26,16],[26,36,26,38],[28,14,28,16],[28,36,28,38],[13,14,13,16],[13,36,13,38],[18,14,18,16],[18,36,18,38],[20,14,20,16],[20,36,20,38],[1,1,5,42],[9,14,9,16],[9,36,9,38],[11,14,11,16],[11,36,11,38]]}
[]
[null,"Level 2 Programme 1 Revision                                                                                                                                                                                             Created by Mr.Lafferty@mathsrevision.com                                                                                                                                             "]
[]
[]
[]
[]
[null,null,null,null,null,null,null,null,null,null,null,null,null,null,null,null,null,null,null,null,null,null,null,null,null,null,null,null,null,null,null,null,null,null,null,null,null,null,null,null,null,null,null,null,null,null,null,{"$f":"ROUND(RAND()*(10-2)+2,1)","v":4.7}]
[null,{"$f":"\"Q1.   Convert the following to the units given :-\"","v":"Q1.   Convert the following to the units given :-"},null,null,null,null,null,null,null,null,null,null,null,null,null,null,null,null,null,null,null,null,null,null,null,null,null,null,null,null,null,null,null,null,null,null,null,null,null,null,null,null,null,null,null,null,null,{"$f":"AV7*100","v":470}]
[null,null,null,null,null,null,null,null,null,null,null,null,null,null,null,null,null,null,null,null,null,null,null,null,null,null,null,null,null,null,null,null,null,null,null,null,null,null,null,null,null,null,null,null,null,null,null,{"$f":"ROUND(RAND()*(1500-220)+220,0)","v":1129}]
[null,null,null,{"$f":"\"(a)   \"&AV7&\" metres to centimetres\"","v":"(a)   4.7 metres to centimetres"},null,null,null,null,null,null,null,null,null,null,null,null,null,"cm",null,null,null,null,null,null,null,{"$f":"\"(b)   \"&AV9&\" centimetres to metres\"","v":"(b)   1129 centimetres to metres"},null,null,null,null,null,null,null,null,null,null,null,null,null,"m",null,null,null,null,null,null,null,{"$f":"AV9/100","v":11.29}]
[null,null,null,null,null,null,null,null,null,null,null,null,null,null,null,null,null,null,null,null,null,null,null,null,null,null,null,null,null,null,null,null,null,null,null,null,null,null,null,null,null,null,null,null,null,null,null,{"$f":"ROUND(RAND()*(30-12)+12,1)","v":20.399999999999999}]
[null,null,null,{"$f":"\"(c)   \"&AV11&\" centimetres to millimetres\"","v":"(c)   20.4 centimetres to millimetres"},null,null,null,null,null,null,null,null,null,null,null,null,null,"mm",null,null,null,null,null,null,null,{"$f":"\"(d)   \"&AV13&\" millimetres to centimetres\"","v":"(d)   77 millimetres to centimetres"},null,null,null,null,null,null,null,null,null,null,null,null,null,"cm",null,null,null,null,null,null,null,{"$f":"AV11*10","v":204}]
[null,null,null,null,null,null,null,null,null,null,null,null,null,null,null,null,null,null,null,null,null,null,null,null,null,null,null,null,null,null,null,null,null,null,null,null,null,null,null,null,null,null,null,null,null,null,null,{"$f":"ROUND(RAND()*(90-12)+12,0)","v":77},{"$f":"ROUND(RAND()*(90-12)+12,1)","v":72.7},{"$f":"ROUND(RAND()*(99000-11000)+11000,-2)","v":25800}]
[null,null,null,{"$f":"\"(e)   \"&AW13&\" kilometres to metres\"","v":"(e)   72.7 kilometres to metres"},null,null,null,null,null,null,null,null,null,null,null,null,null,"m",null,null,null,null,null,null,null,{"$f":"\"(f)   \"&AX13&\" metres to kilometres\"","v":"(f)   25800 metres to kilometres"},null,null,null,null,null,null,null,null,null,null,null,null,null,"km",null,null,null,null,null,null,null,{"$f":"AV13/10","v":7.7},{"$f":"AW13*1000","v":72700},{"$f":"AX13/1000","v":25.8}]
[]
[null,null,null,null,null,null,null,null,null,null,null,null,null,null,null,null,null,null,null,null,null,null,null,null,null,null,null,null,null,null,null,null,null,null,null,null,null,null,null,null,null,null,null,null,null,null,null,{"$f":"ROUND(RAND()*(10-2)+2,1)","v":8.5}]
[null,{"$f":"\"Q2.   Convert the following to the units given :-\"","v":"Q2.   Convert the following to the units given :-"},null,null,null,null,null,null,null,null,null,null,null,null,null,null,null,null,null,null,null,null,null,null,null,null,null,null,null,null,null,null,null,null,null,null,null,null,null,null,null,null,null,null,null,null,null,{"$f":"AV16*1000","v":8500}]
[null,null,null,null,null,null,null,null,null,null,null,null,null,null,null,null,null,null,null,null,null,null,null,null,null,null,null,null,null,null,null,null,null,null,null,null,null,null,null,null,null,null,null,null,null,null,null,{"$f":"ROUND(RAND()*(1500-220)+220,-2)","v":400}]
[null,null,null,{"$f":"\"(a)   \"&AV16&\" litres to millilitres\"","v":"(a)   8.5 litres to millilitres"},null,null,null,null,null,null,null,null,null,null,null,null,null,"ml",null,null,null,null,null,null,null,{"$f":"\"(b)   \"&AV18&\" millilitres to litres\"","v":"(b)   400 millilitres to litres"},null,null,null,null,null,null,null,null,null,null,null,null,null,"l",null,null,null,null,null,null,null,{"$f":"AV18/1000","v":0.4}]
[null,null,null,null,null,null,null,null,null,null,null,null,null,null,null,null,null,null,null,null,null,null,null,null,null,null,null,null,null,null,null,null,null,null,null,null,null,null,null,null,null,null,null,null,null,null,null,{"$f":"ROUND(RAND()*(50-2)+20,1)","v":45.8}]
[null,null,null,{"$f":"\"(c)   \"&AV20&\" litres to millilitres\"","v":"(c)   45.8 litres to millilitres"},null,null,null,null,null,null,null,null,null,null,null,null,null,"ml",null,null,null,null,null,null,null,{"$f":"\"(d)   \"&AV22&\" millilitres to litres\"","v":"(d)   5300 millilitres to litres"},null,null,null,null,null,null,null,null,null,null,null,null,null,"l",null,null,null,null,null,null,null,{"$f":"AV20*1000","v":45800}]
[null,null,null,null,null,null,null,null,null,null,null,null,null,null,null,null,null,null,null,null,null,null,null,null,null,null,null,null,null,null,null,null,null,null,null,null,null,null,null,null,null,null,null,null,null,null,null,{"$f":"ROUND(RAND()*(15000-2200)+2200,-2)","v":5300}]
[null,null,null,null,null,null,null,null,null,null,null,null,null,null,null,null,null,null,null,null,null,null,null,null,null,null,null,null,null,null,null,null,null,null,null,null,null,null,null,null,null,null,null,null,null,null,null,{"$f":"AV22/1000","v":5.3}]
[null,null,null,null,null,null,null,null,null,null,null,null,null,null,null,null,null,null,null,null,null,null,null,null,null,null,null,null,null,null,null,null,null,null,null,null,null,null,null,null,null,null,null,null,null,null,null,{"$f":"ROUND(RAND()*(10-2)+2,1)","v":4.3}]
[null,{"$f":"\"Q32.   Convert the following to the units given :-\"","v":"Q32.   Convert the following to the units given :-"},null,null,null,null,null,null,null,null,null,null,null,null,null,null,null,null,null,null,null,null,null,null,null,null,null,null,null,null,null,null,null,null,null,null,null,null,null,null,null,null,null,null,null,null,null,{"$f":"AV24*1000","v":4300}]
[null,null,null,null,null,null,null,null,null,null,null,null,null,null,null,null,null,null,null,null,null,null,null,null,null,null,null,null,null,null,null,null,null,null,null,null,null,null,null,null,null,null,null,null,null,null,null,{"$f":"ROUND(RAND()*(1500-220)+220,-2)","v":600}]
[null,null,null,{"$f":"\"(a)   \"&AV24&\" kilograms to grams\"","v":"(a)   4.3 kilograms to grams"},null,null,null,null,null,null,null,null,null,null,null,null,null,"g",null,null,null,null,null,null,null,{"$f":"\"(b)   \"&AV26&\" grams to kilograms\"","v":"(b)   600 grams to kilograms"},null,null,null,null,null,null,null,null,null,null,null,null,null,"kg",null,null,null,null,null,null,null,{"$f":"AV26/1000","v":0.6}]
[null,null,null,null,null,null,null,null,null,null,null,null,null,null,null,null,null,null,null,null,null,null,null,null,null,null,null,null,null,null,null,null,null,null,null,null,null,null,null,null,null,null,null,null,null,null,null,{"$f":"ROUND(RAND()*(50-2)+20,1)","v":40.700000000000003}]
[null,null,null,{"$f":"\"(c)   \"&AV28&\" kilograms to grams\"","v":"(c)   40.7 kilograms to grams"},null,null,null,null,null,null,null,null,null,null,null,null,null,"g",null,null,null,null,null,null,null,{"$f":"\"(d)   \"&AV30&\" grams to kilograms\"","v":"(d)   13800 grams to kilograms"},null,null,null,null,null,null,null,null,null,null,null,null,null,"kg",null,null,null,null,null,null,null,{"$f":"AV28*1000","v":40700}]
[null,null,null,null,null,null,null,null,null,null,null,null,null,null,null,null,null,null,null,null,null,null,null,null,null,null,null,null,null,null,null,null,null,null,null,null,null,null,null,null,null,null,null,null,null,null,null,{"$f":"ROUND(RAND()*(15000-2200)+2200,-2)","v":13800}]
[null,null,null,null,null,null,null,null,null,null,null,null,null,null,null,null,null,null,null,null,null,null,null,null,null,null,null,null,null,null,null,null,null,null,null,null,null,null,null,null,null,null,null,null,null,null,null,{"$f":"AV30/1000","v":13.8}]